fUSD/lending_fUSD_20250213
["ID","MTS","AMOUNT","RATE_DAILY","PERIOD"]
[353010541,1739485911040,-500.0,0.00014438,2]
[353010542,1739485911049,-2208.67,0.00014438,2]
[353010543,1739485911059,-543.67,0.00014438,2]
[353010544,1739485911068,-823.62,0.00014438,2]
[353010545,1739485911077,-653.16,0.00014438,2]
[353010546,1739485911087,-638.54,0.00014438,2]
[353010547,1739485911098,-1041.6,0.00014438,2]
[353010548,1739485911108,-500.0,0.00014438,2]
[353010549,1739485911118,-2539.19,0.00014438,2]
[353010550,1739485911127,-500.0,0.00014438,2]
[353010551,1739485911137,-3052.42,0.00014438,2]
[353010552,1739485911146,-514.61,0.00014438,2]
[353010553,1739485911156,-867.43,0.00014438,2]
[353010554,1739485911167,-1525.33,0.00014438,2]
[353010555,1739485911178,-223.22778888,0.00014438,2]
[353010556,1739485911188,-500.0,0.00014438,2]
[353010557,1739485911198,-1400.14,0.00014438,2]
[353010558,1739485911208,-917.77,0.00014438,2]
[353010559,1739485911219,-1241.27,0.00014438,2]
[353010560,1739485911228,-991.55,0.00014438,2]
[353010561,1739485911238,-566.52,0.00014438,2]
[353010562,1739485911248,-500.0,0.00014438,2]
[353010563,1739485911258,-500.0,0.00014438,2]
[353010564,1739485911268,-500.0,0.00014438,2]
[353010565,1739485911278,-500.0,0.00014438,2]
[353010566,1739485911288,-633.2,0.00014438,2]
[353010567,1739485911297,-717.52,0.00014438,2]
[353010568,1739485911308,-689.5,0.00014438,2]
[353010569,1739485911319,-965.58,0.00014438,2]
[353010570,1739485911329,-500.0,0.00014438,2]
[353010571,1739485911341,-756.27,0.00014438,2]
[353010572,1739485911351,-687.68,0.00014438,2]
[353010573,1739485911361,-1501.09,0.00014438,2]
[353010574,1739485911374,-1669.58,0.00014438,2]
[353010575,1739485911385,-825.83,0.00014438,2]
[353010576,1739485911398,-1337.74,0.00014438,2]
[353010577,1739485911407,-500.0,0.00014438,2]
[353010578,1739485911419,-1371.86,0.00014438,2]
[353010579,1739485911431,-500.0,0.00014438,2]
[353010580,1739485911440,-1702.26,0.00014438,2]
[353010581,1739485911451,-500.0,0.00014438,2]
[353010582,1739485911463,-1754.49,0.00014438,2]
[353010583,1739485911472,-1078.61,0.00014438,2]
[353010584,1739485911482,-869.45,0.00014438,2]
[353010585,1739485911492,-1158.07,0.00014438,2]
[353010586,1739485911501,-500.0,0.00014438,2]
[353010587,1739485911511,-500.0,0.00014438,2]
[353010588,1739485911522,-991.47,0.00014438,2]
[353010589,1739485911531,-1684.45,0.00014438,2]
[353010590,1739485911541,-526.8,0.00014438,2]
[353010591,1739485911552,-660.93,0.00014438,2]
[353010592,1739485911561,-1302.35,0.00014438,2]
[353010593,1739485911571,-854.62,0.00014438,2]
[353010594,1739485911581,-2012.26,0.00014438,2]
[353010595,1739485911592,-504.56,0.00014438,2]
[353010596,1739485911601,-763.9,0.00014438,2]
[353010597,1739485911612,-696.46,0.00014438,2]
[353010598,1739485911622,-835.17,0.00014438,2]
[353010599,1739485911633,-692.97,0.00014438,2]
[353010600,1739485911643,-566.32,0.00014438,2]
[353010601,1739485911655,-857.95,0.00014438,2]
[353010602,1739485911665,-2021.1,0.00014438,2]
[353010603,1739485911675,-702.16,0.00014438,2]
[353010604,1739485911686,-683.82,0.00014438,2]
[353010605,1739485911695,-1015.7,0.00014438,2]
[353010606,1739485911704,-713.38,0.00014438,2]
[353010607,1739485911715,-500.0,0.00014438,2]
[353010608,1739485911724,-500.0,0.00014438,2]
[353010609,1739485911735,-1424.92,0.00014438,2]
[353010610,1739485911745,-500.0,0.00014438,2]
[353010611,1739485911756,-500.0,0.00014438,2]
[353010612,1739485911765,-500.0,0.00014438,2]
[353010613,1739485911775,-811.86,0.00014438,2]
[353010614,1739485911786,-988.11,0.00014438,2]
[353010615,1739485911796,-1906.79,0.00014438,2]
[353010616,1739485911806,-1427.42,0.00014438,2]
[353010617,1739485911817,-524.63,0.00014438,2]
[353010618,1739485911827,-500.0,0.00014438,2]
[353010619,1739485911837,-881.54,0.00014438,2]
[353010620,1739485911847,-865.9,0.00014438,2]
[353010621,1739485911858,-1372.61,0.00014438,2]
[353010622,1739485911868,-758.33,0.00014438,2]
[353010623,1739485911878,-1840.97,0.00014438,2]
[353010624,1739485911888,-1636.34,0.00014438,2]
[353010625,1739485911898,-1782.82,0.00014438,2]
[353010626,1739485911907,-1035.24,0.00014438,2]
[353010627,1739485911917,-557.25,0.00014438,2]
[353010628,1739485911927,-687.87,0.00014438,2]
[353010629,1739485911937,-888.74,0.00014438,2]
[353010630,1739485911948,-500.0,0.00014438,2]
[353010631,1739485911958,-1131.23,0.00014438,2]
[353010632,1739485911968,-976.11,0.00014438,2]
[353010633,1739485911978,-548.09,0.00014438,2]
[353010634,1739485911988,-1065.2,0.00014438,2]
[353010635,1739485911999,-500.0,0.00014438,2]
[353010636,1739485912009,-1519.15,0.00014438,2]
[353010637,1739485912019,-825.94,0.00014438,2]
[353010638,1739485912033,-717.12,0.00014438,2]
[353010639,1739485912043,-718.5,0.00014438,2]
[353010640,1739485912053,-500.0,0.00014438,2]
[353010641,1739485912063,-1464.62,0.00014438,2]
[353010642,1739485912074,-1779.83,0.00014438,2]
[353010643,1739485912084,-551.0,0.00014438,2]
[353010644,1739485912094,-1813.74,0.00014438,2]
[353010645,1739485912105,-558.37,0.00014438,2]
[353010646,1739485912116,-807.26,0.00014438,2]
[353010647,1739485912126,-1306.72,0.00014438,2]
[353010648,1739485912136,-1123.76,0.00014438,2]
[353010649,1739485912146,-500.0,0.00014438,2]
[353010650,1739485912157,-500.0,0.00014438,2]
[353010651,1739485912167,-844.9,0.00014438,2]
[353010652,1739485912177,-2257.68,0.00014438,2]
[353010653,1739485912187,-831.33,0.00014438,2]
[353010654,1739485912198,-923.9,0.00014438,2]
[353010655,1739485912208,-500.0,0.00014438,2]
[353010656,1739485912219,-840.31,0.00014438,2]
[353010657,1739485912229,-897.69,0.00014438,2]
[353010658,1739485912239,-1270.71,0.00014438,2]
[353010659,1739485912249,-853.17,0.00014438,2]
[353010660,1739485912259,-500.0,0.00014438,2]
[353010661,1739485912269,-1705.94,0.00014438,2]
[353010662,1739485912278,-500.0,0.00014438,2]
[353010663,1739485912288,-876.71,0.00014438,2]
[353010664,1739485912298,-885.91,0.00014438,2]
[353010665,1739485912308,-500.0,0.00014438,2]
[353010666,1739485912319,-2161.09,0.00014438,2]
[353010667,1739485912329,-500.0,0.00014438,2]
[353010668,1739485912339,-500.0,0.00014438,2]
[353010669,1739485912350,-1238.79,0.00014438,2]
[353010670,1739485912360,-3040.0,0.00014438,2]
[353010671,1739485912370,-1105.8,0.00014438,2]
[353010672,1739485912380,-2265.19,0.00014438,2]
[353010673,1739485912391,-1322.86,0.00014438,2]
[353010674,1739485912401,-500.0,0.00014438,2]
[353010675,1739485912411,-646.18,0.00014438,2]
[353010676,1739485912421,-906.34,0.00014438,2]
[353010677,1739485912431,-523.6,0.00014438,2]
[353010678,1739485912441,-893.53,0.00014438,2]
[353010679,1739485912451,-370.75820516,0.00014438,2]
[353010680,1739485912461,-970.55,0.00014438,2]
[353010681,1739485912471,-702.31,0.00014438,2]
[353010682,1739485912481,-553.1,0.00014438,2]
[353010683,1739485912491,-2482.92,0.00014438,2]
[353010684,1739485912501,-500.0,0.00014438,2]
[353010685,1739485912511,-858.18,0.00014438,2]
[353010686,1739485912521,-669.76,0.00014438,2]
[353010687,1739485912531,-710.97,0.00014438,2]
[353010688,1739485912542,-1892.5,0.00014438,2]
[353010689,1739485912552,-739.26,0.00014438,2]
[353010690,1739485912563,-1559.26,0.00014438,2]
[353010691,1739485912573,-602.38,0.00014438,2]
[353010692,1739485912583,-1326.07,0.00014438,2]
[353010693,1739485912593,-835.99,0.00014438,2]
[353010694,1739485912603,-1789.82,0.00014438,2]
[353010695,1739485912613,-500.0,0.00014438,2]
[353010696,1739485912623,-1318.31,0.00014438,2]
[353010697,1739485912633,-551.86,0.00014438,2]
[353010698,1739485912644,-864.67,0.00014438,2]
[353010699,1739485912656,-500.0,0.00014438,2]
[353010700,1739485912666,-1141.82,0.00014438,2]
[353010701,1739485912677,-1994.16,0.00014438,2]
[353010702,1739485912687,-812.11,0.00014438,2]
[353010703,1739485912697,-458.23481998,0.00014438,2]
[353010704,1739485912707,-500.0,0.00014438,2]
[353010705,1739485912717,-1079.19,0.00014438,2]
[353010706,1739485912727,-859.06,0.00014438,2]
[353010707,1739485912738,-1941.15,0.00014438,2]
[353010708,1739485912748,-2409.32,0.00014438,2]
[353010709,1739485912758,-592.63,0.00014438,2]
[353010710,1739485912768,-900.38,0.00014438,2]
[353010711,1739485912779,-1741.64,0.00014438,2]
[353010712,1739485912789,-1010.42,0.00014438,2]
[353010713,1739485912799,-730.65,0.00014438,2]
[353010714,1739485912809,-1201.88,0.00014438,2]
[353010715,1739485912819,-2964.55,0.00014438,2]
[353010716,1739485912829,-645.62,0.00014438,2]
[353010717,1739485912839,-765.27,0.00014438,2]
[353010718,1739485912849,-1693.27,0.00014438,2]
[353010719,1739485912859,-1023.18,0.00014438,2]
[353010720,1739485912870,-1983.35,0.00014438,2]
[353010721,1739485912880,-1199.21,0.00014438,2]
[353010722,1739485912890,-1991.14,0.00014438,2]
[353010723,1739485912900,-533.09,0.00014438,2]
[353010724,1739485912911,-2700.69,0.00014438,2]
[353010725,1739485912922,-500.0,0.00014438,2]
[353010726,1739485912932,-4281.75,0.00014438,2]
[353010727,1739485912942,-1072.56,0.00014438,2]
[353010728,1739485912952,-2181.51,0.00014438,2]
[353010729,1739485912962,-2105.12,0.00014438,2]
[353010730,1739485912972,-2362.29,0.00014438,2]
[353010731,1739485912983,-190.59754482,0.00014438,2]
[353010732,1739485912993,-797.65,0.00014438,2]
[353010733,1739485913003,-1372.43,0.00014438,2]
[353010734,1739485913013,-500.0,0.00014438,2]
[353010735,1739485913026,-2270.27,0.00014438,2]
[353010736,1739485913037,-500.0,0.00014438,2]
[353010737,1739485913047,-701.26,0.00014438,2]
[353010738,1739485913058,-1635.6,0.00014438,2]
[353010739,1739485913069,-1210.46,0.00014438,2]
[353010740,1739485913079,-1551.99,0.00014438,2]
[353010741,1739485913089,-2766.93,0.00014438,2]
[353010742,1739485913100,-4033.58,0.00014438,2]
[353010743,1739485913112,-2765.04,0.00014438,2]
[353010744,1739485913122,-660.75,0.00014438,2]
[353010745,1739485913133,-2103.7,0.00014438,2]
[353010746,1739485913142,-924.48,0.00014438,2]
[353010747,1739485913152,-794.33,0.00014438,2]
[353010748,1739485913163,-1140.21,0.00014438,2]
[353010749,1739485913336,-1374.92,0.00014438,2]
[353010750,1739485913346,-500.0,0.00014438,2]
[353010751,1739485913355,-1394.91,0.00014438,2]
[353010752,1739485913365,-2230.12,0.00014438,2]
[353010753,1739485913375,-500.0,0.00014438,2]
[353010754,1739485913384,-878.31,0.00014438,2]
[353010755,1739485913395,-1071.07,0.00014438,2]
[353010756,1739485913405,-3342.84,0.00014438,2]
[353010757,1739485913415,-683.58,0.00014438,2]
[353010758,1739485913425,-1308.38,0.00014438,2]
[353010759,1739485913434,-3531.08,0.00014438,2]
[353010760,1739485913443,-1653.81,0.00014438,2]
[353010761,1739485913453,-553.67,0.00014438,2]
[353010762,1739485913462,-988.77,0.00014438,2]
[353010763,1739485913474,-500.0,0.00014438,2]
[353010764,1739485913484,-2226.29,0.00014438,2]
[353010765,1739485913495,-969.77,0.00014438,2]
[353010766,1739485913505,-1807.21,0.00014438,2]
[353010767,1739485913515,-1796.12,0.00014438,2]
[353010768,1739485913526,-500.0,0.00014438,2]
[353010769,1739485913537,-3314.33,0.00014438,2]
[353010770,1739485913547,-3189.0,0.00014438,2]
[353010771,1739485913556,-803.11,0.00014438,2]
[353010772,1739485913565,-607.85,0.00014438,2]
[353010773,1739485913574,-761.91,0.00014438,2]
[353010774,1739485913583,-621.21,0.00014438,2]
[353010775,1739485913592,-1972.85,0.00014438,2]
[353010776,1739485913602,-523.93,0.00014438,2]
[353010777,1739485913612,-3990.94,0.00014438,2]
[353010778,1739485913621,-719.42,0.00014438,2]
[353010779,1739485913631,-749.77,0.00014438,2]
[353010780,1739485913642,-500.0,0.00014438,2]
[353010781,1739485913652,-1753.67,0.00014438,2]
[353010782,1739485913662,-2497.17,0.00014438,2]
[353010783,1739485913671,-500.0,0.00014438,2]
[353010784,1739485913681,-1325.27,0.00014438,2]
[353010785,1739485913690,-3120.71,0.00014438,2]
[353010786,1739485913700,-511.69,0.00014438,2]
[353010787,1739485913710,-3912.39,0.00014438,2]
[353010788,1739485913719,-1203.12,0.00014438,2]
[353010789,1739485913728,-500.0,0.00014438,2]
[353010790,1739485913737,-635.38,0.00014438,2]
[353010791,1739485913746,-1628.89,0.00014438,2]
[353010792,1739485913755,-1174.26,0.00014438,2]
[353010793,1739485913765,-5014.48,0.00014438,2]
[353010794,1739485913776,-500.0,0.00014438,2]
[353010795,1739485913785,-591.53,0.00014438,2]
[353010796,1739485913797,-2834.89,0.00014438,2]
[353010797,1739485913809,-1129.98,0.00014438,2]
[353010798,1739485913820,-4012.08,0.00014438,2]
[353010799,1739485913831,-1877.06,0.00014438,2]
[353010800,1739485913841,-2305.18,0.00014438,2]
[353010801,1739485913850,-3400.07,0.00014438,2]
[353010802,1739485913861,-10601.94,0.00014438,2]
[353010803,1739485913871,-1278.06,0.00014438,2]
[353010804,1739485913881,-2677.19,0.00014438,2]
[353010805,1739485913892,-2091.53,0.00014438,2]
[353010806,1739485913903,-500.0,0.00014438,2]
[353010807,1739485913912,-1914.19,0.00014438,2]
[353010808,1739485913923,-6319.86,0.00014438,2]
[353010809,1739485913933,-2222.28,0.00014438,2]
[353010810,1739485913943,-1244.36,0.00014438,2]
[353010811,1739485913955,-2434.73,0.00014438,2]
[353010812,1739485913966,-1301.75,0.00014438,2]
[353010813,1739485913976,-3378.69,0.00014438,2]
[353010814,1739485913985,-1073.98,0.00014438,2]
[353010815,1739485913995,-500.0,0.00014438,2]
[353010816,1739485914005,-500.0,0.00014438,2]
[353010817,1739485914016,-1003.25,0.00014438,2]
[353010818,1739485914028,-3213.97,0.00014438,2]
[353010819,1739485914038,-1894.84,0.00014438,2]
[353010820,1739485914049,-1618.51,0.00014438,2]
[353010821,1739485914059,-3027.83,0.00014438,2]
[353010822,1739485914070,-1463.57,0.00014438,2]
[353010823,1739485914081,-551.57,0.00014438,2]
[353010824,1739485914091,-1866.04,0.00014438,2]
[353010825,1739485914102,-3405.09,0.00014438,2]
[353010826,1739485914112,-3794.0,0.00014438,2]
[353010827,1739485914121,-3558.25,0.00014438,2]
[353010828,1739485914131,-1199.38,0.00014438,2]
[353010829,1739485914141,-5141.78,0.00014438,2]
[353010830,1739485914150,-5036.58,0.00014438,2]
[353010831,1739485914159,-972.02,0.00014438,2]
[353010832,1739485914169,-1457.37,0.00014438,2]
[353010833,1739485914179,-4943.34,0.00014438,2]
[353010834,1739485914188,-1646.26,0.00014438,2]
[353010835,1739485914198,-1023.76,0.00014438,2]
[353010836,1739485914208,-615.3442164,0.00014438,2]
[353010837,1739485914217,-973.76,0.00014438,2]
[353010838,1739485914227,-1078.92,0.00014438,2]
[353010839,1739485914237,-3488.7,0.00014438,2]
[353010840,1739485914247,-9947.08,0.00014438,2]
[353010841,1739485914257,-1167.35,0.00014438,2]
[353010842,1739485914268,-1925.44,0.00014438,2]
[353010843,1739485914278,-3871.01,0.00014438,2]
[353010844,1739485914288,-3374.31,0.00014438,2]
[353010845,1739485914298,-3262.34,0.00014438,2]
[353010846,1739485914307,-3751.7,0.00014438,2]
[353010847,1739485914316,-2216.47,0.00014438,2]
[353010848,1739485914327,-500.0,0.00014438,2]
[353010849,1739485914336,-500.0,0.00014438,2]
[353010850,1739485914346,-1272.94,0.00014438,2]
[353010851,1739485914356,-2198.57,0.00014438,2]
[353010852,1739485914365,-3047.23,0.00014438,2]
[353010853,1739485914375,-4282.13,0.00014438,2]
[353010854,1739485914384,-1579.29,0.00014438,2]
[353010855,1739485914394,-2262.09,0.00014438,2]
[353010856,1739485914405,-2034.1,0.00014438,2]
[353010857,1739485914415,-4796.16,0.00014438,2]
[353010858,1739485914424,-621.58,0.00014438,2]
[353010859,1739485914434,-4188.27,0.00014438,2]
[353010860,1739485914443,-5302.96,0.00014438,2]
[353010861,1739485914453,-2900.35,0.00014438,2]
[353010862,1739485914463,-3352.12,0.00014438,2]
[353010863,1739485914472,-525.01,0.00014438,2]
[353010864,1739485914482,-2517.29,0.00014438,2]
[353010865,1739485914491,-3510.5,0.00014438,2]
[353010866,1739485914500,-1911.76,0.00014438,2]
[353010867,1739485914510,-3186.25,0.00014438,2]
[353010868,1739485914520,-1411.53,0.00014438,2]
[353010869,1739485914529,-5245.34,0.00014438,2]
[353010870,1739485914539,-500.0,0.00014438,2]
[353010871,1739485914548,-4040.71,0.00014438,2]
[353010872,1739485914558,-2434.4,0.00014438,2]
[353010873,1739485914567,-797.43,0.00014438,2]
[353010874,1739485914578,-3997.95,0.00014438,2]
[353010875,1739485914588,-500.0,0.00014438,2]
[353010876,1739485914598,-3613.39,0.00014438,2]
[353010877,1739485914607,-3418.06,0.00014438,2]
[353010878,1739485914616,-566.64,0.00014438,2]
[353010879,1739485914626,-500.0,0.00014438,2]
[353010880,1739485914636,-8838.73,0.00014438,2]
[353010881,1739485914645,-624.99,0.00014438,2]
[353010882,1739485914654,-720.74,0.00014438,2]
[353010883,1739485914664,-3533.94,0.00014438,2]
[353010884,1739485914673,-3776.32,0.00014438,2]
[353010885,1739485914683,-522.13,0.00014438,2]
[353010886,1739485914692,-4171.69,0.00014438,2]
[353010887,1739485914702,-2767.11,0.00014438,2]
[353010888,1739485914711,-500.0,0.00014438,2]
[353010889,1739485914720,-1300.63,0.00014438,2]
[353010890,1739485914729,-3523.18,0.00014438,2]
[353010891,1739485914739,-4629.45,0.00014438,2]
[353010892,1739485914748,-2317.93,0.00014438,2]
[353010893,1739485914757,-542.74,0.00014438,2]
[353010894,1739485914767,-6501.79,0.00014438,2]
[353010895,1739485914777,-649.96,0.00014438,2]
[353010896,1739485914786,-2852.77,0.00014438,2]
[353010897,1739485914796,-4468.57,0.00014438,2]
[353010898,1739485914806,-773.78,0.00014438,2]
[353010899,1739485914815,-724.47,0.00014438,2]
[353010900,1739485914825,-2513.38,0.00014438,2]
[353010901,1739485914835,-4071.43,0.00014438,2]
[353010902,1739485914844,-3680.29,0.00014438,2]
[353010903,1739485914854,-3113.41,0.00014438,2]
[353010904,1739485914864,-964.12,0.00014438,2]
[353010905,1739485914873,-500.0,0.00014438,2]
[353010906,1739485914883,-563.51749667,0.00014438,2]
[353010907,1739485914892,-1523.71,0.00014438,2]
[353010908,1739485914901,-525.45,0.00014438,2]
[353010909,1739485914911,-741.53,0.00014438,2]
[353010910,1739485914920,-2768.98,0.00014438,2]
[353010911,1739485914929,-1470.77,0.00014438,2]
[353010912,1739485914939,-3441.38,0.00014438,2]
[353010913,1739485914948,-4132.51,0.00014438,2]
[353010914,1739485914957,-1712.88,0.00014438,2]
[353010915,1739485914967,-4938.55,0.00014438,2]
[353010916,1739485914976,-2124.68,0.00014438,2]
[353010917,1739485914985,-1226.02,0.00014438,2]
[353010918,1739485914995,-1789.26,0.00014438,2]
[353010919,1739485915004,-1451.96,0.00014438,2]
[353010920,1739485915014,-824.05,0.00014438,2]
[353010921,1739485915028,-3558.23,0.00014438,2]
[353010922,1739485915037,-4167.53,0.00014438,2]
[353010923,1739485915046,-880.79,0.00014438,2]
[353010924,1739485915056,-1936.97,0.00014438,2]
[353010925,1739485915066,-1838.56,0.00014438,2]
[353010926,1739485915076,-2962.2,0.00014438,2]
[353010927,1739485915085,-598.78,0.00014438,2]
[353010928,1739485915094,-709.99,0.00014438,2]
[353010929,1739485915105,-4502.56,0.00014438,2]
[353010930,1739485915114,-166.69,0.00014451,2]
[353010931,1739485915123,-3420.98,0.00014455,2]
[353010932,1739485915132,-152.0,0.0001448,4]
[353010933,1739485915142,-71811.11014144,0.000145,2]
[353010934,1739485915153,-171.409911,0.00014506,2]
[353010935,1739485915163,-173.821041,0.00014506,2]
[353010936,1739485915173,-169.264937,0.00014506,2]
[353010937,1739485915182,-169.264937,0.00014506,2]
[353010938,1739485915192,-8768.635103,0.0001451,2]
[353010939,1739485915202,-296.0664918,0.0001451,2]
[353010940,1739485915211,-2383.6854991,0.0001451,2]
[353010941,1739485915221,-1009.64,0.00014516,2]
[353010942,1739485915230,-1124.476697,0.0001452,2]
[353010943,1739485915239,-1030.770305,0.0001452,2]
[353010944,1739485915249,-1369.077968,0.0001452,2]
[353010945,1739485915258,-500.0,0.0001452,2]
[353010946,1739485915267,-500.0,0.0001452,2]
[353010947,1739485915277,-781.27,0.0001452,2]
[353010948,1739485915286,-640.12,0.0001452,2]
[353010949,1739485915295,-571.73,0.0001452,2]
[353010950,1739485915305,-767.83,0.0001452,2]
[353010951,1739485915315,-517.58,0.0001452,2]
[353010952,1739485915324,-748.33,0.0001452,2]
[353010953,1739485915334,-500.0,0.0001452,2]
[353010954,1739485915343,-1019.36,0.0001452,2]
[353010955,1739485915352,-500.0,0.0001452,2]
[353010956,1739485915362,-536.11,0.0001452,2]
[353010957,1739485915371,-853.88,0.0001452,2]
[353010958,1739485915381,-500.0,0.0001452,2]
[353010959,1739485915391,-500.0,0.0001452,2]
[353010960,1739485915401,-1237.75,0.0001452,2]
[353010961,1739485915411,-500.0,0.0001452,2]
[353010962,1739485915420,-823.6,0.0001452,2]
[353010963,1739485915430,-500.0,0.0001452,2]
[353010964,1739485915440,-583.03,0.0001452,2]
[353010965,1739485915450,-588.86,0.0001452,2]
[353010966,1739485915459,-500.0,0.0001452,2]
[353010967,1739485915468,-839.01,0.0001452,2]
[353010968,1739485915478,-632.18,0.0001452,2]
[353010969,1739485915487,-500.0,0.0001452,2]
[353010970,1739485915497,-1100.34,0.0001452,2]
[353010971,1739485915506,-500.0,0.0001452,2]
[353010972,1739485915515,-907.89,0.0001452,2]
[353010973,1739485915524,-500.0,0.0001452,2]
[353010974,1739485915534,-791.76,0.0001452,2]
[353010975,1739485915543,-500.0,0.0001452,2]
[353010976,1739485915552,-1002.52,0.0001452,2]
[353010977,1739485915561,-500.0,0.0001452,2]
[353010978,1739485915571,-673.2,0.0001452,2]
[353010979,1739485915580,-864.99,0.0001452,2]
[353010980,1739485915589,-556.42,0.0001452,2]
[353010981,1739485915598,-606.37,0.0001452,2]
[353010982,1739485915607,-500.0,0.0001452,2]
[353010983,1739485915617,-500.0,0.0001452,2]
[353010984,1739485915626,-500.0,0.0001452,2]
[353010985,1739485915635,-542.4,0.0001452,2]
[353010986,1739485915644,-500.0,0.0001452,2]
[353010987,1739485915653,-606.89,0.0001452,2]
[353010988,1739485915663,-551.03,0.0001452,2]
[353010989,1739485915672,-500.0,0.0001452,2]
[353010990,1739485915681,-571.58,0.0001452,2]
[353010991,1739485915690,-507.69,0.0001452,2]
[353010992,1739485915699,-500.0,0.0001452,2]
[353010993,1739485915708,-500.0,0.0001452,2]
[353010994,1739485915717,-500.0,0.0001452,2]
[353010995,1739485915726,-340.20102105,0.0001452,2]
[353010996,1739485915736,-500.0,0.0001452,2]
[353010997,1739485915745,-500.0,0.0001452,2]
[353010998,1739485915754,-500.0,0.0001452,2]
[353010999,1739485915765,-500.0,0.0001452,2]
[353011000,1739485915774,-500.0,0.0001452,2]
[353011001,1739485915783,-2208.67,0.0001452,2]
[353011002,1739485915793,-543.67,0.0001452,2]
[353011003,1739485915803,-823.62,0.0001452,2]
[353011004,1739485915811,-653.16,0.0001452,2]
[353011005,1739485915821,-638.54,0.0001452,2]
[353011006,1739485915831,-1041.6,0.0001452,2]
[353011007,1739485915840,-500.0,0.0001452,2]
[353011008,1739485915849,-2539.19,0.0001452,2]
[353011009,1739485915859,-500.0,0.0001452,2]
[353011010,1739485915868,-3052.42,0.0001452,2]
[353011011,1739485915877,-514.61,0.0001452,2]
[353011012,1739485916044,-867.43,0.0001452,2]
[353011013,1739485916055,-1525.33,0.0001452,2]
[353011014,1739485916066,-500.0,0.0001452,2]
[353011015,1739485916075,-1400.14,0.0001452,2]
[353011016,1739485916085,-917.77,0.0001452,2]
[353011017,1739485916094,-1241.27,0.0001452,2]
[353011018,1739485916105,-991.55,0.0001452,2]
[353011019,1739485916114,-566.52,0.0001452,2]
[353011020,1739485916124,-500.0,0.0001452,2]
[353011021,1739485916134,-500.0,0.0001452,2]
[353011022,1739485916143,-500.0,0.0001452,2]
[353011023,1739485916154,-500.0,0.0001452,2]
[353011024,1739485916163,-633.2,0.0001452,2]
[353011025,1739485916173,-717.52,0.0001452,2]
[353011026,1739485916183,-689.5,0.0001452,2]
[353011027,1739485916193,-965.58,0.0001452,2]
[353011028,1739485916202,-500.0,0.0001452,2]
[353011029,1739485916212,-756.27,0.0001452,2]
[353011030,1739485916221,-687.68,0.0001452,2]
[353011031,1739485916231,-1501.09,0.0001452,2]
[353011032,1739485916241,-1669.58,0.0001452,2]
[353011033,1739485916250,-825.83,0.0001452,2]
[353011034,1739485916259,-1337.74,0.0001452,2]
[353011035,1739485916269,-500.0,0.0001452,2]
[353011036,1739485916279,-1371.86,0.0001452,2]
[353011037,1739485916288,-500.0,0.0001452,2]
[353011038,1739485916298,-1702.26,0.0001452,2]
[353011039,1739485916308,-500.0,0.0001452,2]
[353011040,1739485916318,-1754.49,0.0001452,2]